[Event "4th Memorial Warakomska-A 2020"]
[Site "Suwalki"]
[Date "2020.08.09"]
[Round "5.13"]
[White "Chojnowski, Marcin"]
[Black "Backiel, Hubert"]
[Result "0-1"]
[ECO "B40"]
[WhiteElo "2035"]
[BlackElo "1943"]
[Annotator "NA"]
[PlyCount "68"]
[EventDate "2020.08.06"]
[EventType "swiss"]
[EventCountry "POL"]
[SourceTitle "playchess.com"]
[Source "ChessBase"]
[SourceQuality "1"]
[TimeControl "40/5400+30:1800+30"]

1. e4 {[%emt 0:00:00]} c5 {[%emt 0:00:00]} 2. Nf3 {[%emt 0:00:00]} e6 {[%emt 0:00:00]} 3. d4 {[%emt 0:00:46]} cxd4 {[%emt 0:00:00]} 4. Nxd4 {[%emt 0:00:04]} Nf6 {[%emt 0:00:00]} 5. Bd3 {[%emt 0:00:37]} Nc6 {[%emt 0:00:47]} 6. Nxc6 {[%emt 0:00:12]} bxc6 {[%emt 0:00:06]} 7. O-O {[%emt 0:00:17]} d5 {[%emt 0:01:30]} 8. Nc3 {[%emt 0:00:42]} Be7 {[%emt 0:00:57]} 9. Re1 {[%emt 0:04:01]} a5 {[%emt 0:02:18] [#] B40: Sicilian: 2...e6, Unusual lines.} 10. Bg5 $146 {[%emt 0:03:55]} ({Predecessor:} 10. Qf3 Ba6 11. Bxa6 Rxa6 12. e5 Nd7 13. Qg3 g6 14. Bh6 Bf8 15. Bg5 Be7 16. Bh6 Bf8 17. Bg5 Be7 {½-½ (17) Juhasz,B (2223)-Horvath,T (2318) Ajka 2020}) 10... Ba6 {[%emt 0:04:36]} 11. exd5 {[%emt 0:03:02]} cxd5 {[%emt 0:01:40]} 12. Bxf6 {[%emt 0:02:29]} Bxf6 {[%emt 0:07:35]} 13. Bxa6 {[%emt 0:00:49]} Rxa6 {[%emt 0:00:02]} 14. Nxd5 {[%emt 0:00:26]} Bxb2 {[%emt 0:00:51]} 15. Rb1 {[%emt 0:12:56]} Rd6 {[%emt 0:03:14] Pin} 16. c4 {[%emt 0:02:23]} O-O {[%emt 0:07:23]} 17. Rxb2 {[%emt 0:00:42]} exd5 {[%emt 0:00:20]} 18. c5 {[%emt 0:00:08]} Rh6 {[%emt 0:01:56]} 19. Qd4 {[%emt 0:03:47]} Rh4 {[%emt 0:20:15]} 20. f4 {[%emt 0:02:32]} Rxh2 $1 {[%emt 0:03:54]} 21. Qf2 {[%emt 0:13:13]} Rh6 {[%emt 0:08:34]} 22. Rb6 $15 {[%emt 0:00:30]} Rxb6 {[%emt 0:11:14]} 23. cxb6 {[%emt 0:00:02]} d4 {[%emt 0:00:01]} 24. Qb2 {[%emt 0:09:35]} Qd6 {[%emt 0:01:11]} 25. Re4 {[%emt 0:16:25]} d3 {[%emt 0:09:24]} 26. Qd4 {[%emt 0:02:28]} Qa3 {[%emt 0:00:35]} 27. Re1 {[%emt 0:02:05]} h6 {[%emt 0:02:14]} 28. Rd1 {[%emt 0:02:45]} Rb8 {[%emt 0:00:58]} 29. Rxd3 Qxa2 30. Rg3 {[%emt 0:03:44]} Qb1+ {[%emt 0:03:30]} 31. Kh2 {[%emt 0:00:04]} g6 {[%emt 0:00:03]} 32. Qd5 {[%emt 0:05:17]} Qxb6 {[%emt 0:03:21]} 33. f5 {[%emt 0:00:09]} g5 {[%emt 0:00:54]} 34. Rh3 {[%emt 0:01:25]} Rd8 {[%emt 0:00:46]} 0-1

[Event "4th Memorial Warakomska-A 2020"]
[Site "Suwalki"]
[Date "2020.08.09"]
[Round "5.14"]
[White "Sobocinski, Slawomir"]
[Black "Krasiewicz, Robert"]
[Result "0-1"]
[ECO "A40"]
[WhiteElo "1914"]
[BlackElo "2033"]
[Annotator "ChessBase"]
[PlyCount "138"]
[EventDate "2020.08.06"]
[EventType "swiss"]
[EventCountry "POL"]
[SourceTitle "playchess.com"]
[Source "ChessBase"]
[SourceQuality "1"]
[TimeControl "40/5400+30:1800+30"]

1. d4 {[%emt 0:00:00]} g6 {[%emt 0:00:00]} 2. Nf3 {[%emt 0:02:14]} Bg7 {[%emt 0:00:01]} 3. e3 {[%emt 0:00:59]} d6 {[%emt 0:00:31]} 4. c4 {[%emt 0:03:35]} f5 {[%emt 0:01:27]} 5. Nc3 {[%emt 0:01:37]} Nf6 {[%emt 0:00:04]} 6. Bd3 {[%emt 0:01:31]} Nc6 {[%emt 0:01:35]} 7. O-O {[%emt 0:06:45]} e5 {[%emt 0:02:27]} 8. d5 {[%emt 0:08:41]} Ne7 {[%emt 0:00:42]} 9. Be2 {[%emt 0:06:14]} O-O {[%emt 0:00:19]} 10. b4 {[%emt 0:12:17]} a5 {[%emt 0:01:41]} 11. bxa5 {[%emt 0:04:36]} Rxa5 {[%emt 0:00:09]} 12. Bd2 {[%emt 0:02:19]} b6 {[%emt 0:01:03]} 13. Nb5 {[%emt 0:01:40]} Ra8 {[%emt 0:00:26]} 14. Bc3 {[%emt 0:02:29]} Bd7 {[%emt 0:00:57]} 15. a4 {[%emt 0:00:21]} Kh8 {[%emt 0:01:46]} 16. Qb3 {[%emt 0:01:10]} Ne4 {[%emt 0:00:51]} 17. Bb4 {[%emt 0:01:10]} g5 {[%emt 0:14:08]} 18. Nd2 {[%emt 0:05:45]} Nf6 {[%emt 0:02:08]} 19. Rfd1 {[%emt 0:02:25]} g4 {[%emt 0:02:31]} 20. Bc3 {[%emt 0:01:54]} f4 {[%emt 0:01:06]} 21. exf4 {[%emt 0:02:48]} exf4 {[%emt 0:00:09]} 22. Bd3 {[%emt 0:05:34]} Ng6 {[%emt 0:04:54]} 23. Re1 {[%emt 0:01:57]} Ne5 {[%emt 0:14:34]} 24. Rxe5 {[%emt 0:01:31]} dxe5 {[%emt 0:00:14]} 25. Bxe5 {[%emt 0:00:21]} Ne8 {[%emt 0:01:33]} 26. Qc3 {[%emt 0:00:52]} Qe7 {[%emt 0:04:21]} 27. Bxg7+ {[%emt 0:09:01]} Qxg7 {[%emt 0:00:19]} 28. Nd4 {[%emt 0:03:25]} Rxa4 {[%emt 0:04:33]} 29. Re1 {[%emt 0:01:38]} Nd6 {[%emt 0:00:39]} 30. Bc2 {[%emt 0:01:06]} Raa8 {[%emt 0:00:47]} 31. Qd3 {[%emt 0:01:11]} Bf5 {[%emt 0:03:14]} 32. Nxf5 {[%emt 0:01:58]} Nxf5 {[%emt 0:00:09]} 33. Nb3 {[%emt 0:00:33]} Rae8 {[%emt 0:03:55]} 34. Re6 {[%emt 0:01:46]} Rxe6 {[%emt 0:02:03]} 35. dxe6 {[%emt 0:00:05]} Qe5 {[%emt 0:00:28]} 36. h4 {[%emt 0:05:54]} g3 {[%emt 0:01:49]} 37. fxg3 {[%emt 0:00:11]} fxg3 {[%emt 0:00:34]} 38. Nd2 {[%emt 0:00:37]} Qd4+ {[%emt 0:04:10]} 39. Qxd4+ {[%emt 0:00:39]} Nxd4 {[%emt 0:00:01]} 40. Be4 {[%emt 0:00:00]} Nxe6 {[%emt 0:00:00]} 41. Nf1 {[%emt 0:02:03]} Rf4 {[%emt 0:02:58]} 42. Bd5 {[%emt 0:00:28]} Nd8 {[%emt 0:00:44]} 43. Nxg3 {[%emt 0:01:53]} Rxh4 {[%emt 0:00:22]} 44. Nf5 {[%emt 0:00:47]} Rf4 {[%emt 0:00:48]} 45. Ne3 {[%emt 0:00:14]} Kg7 {[%emt 0:00:57]} 46. g3 {[%emt 0:00:42]} Rf8 {[%emt 0:00:29]} 47. Kg2 {[%emt 0:00:35]} Kf6 {[%emt 0:03:45]} 48. g4 {[%emt 0:03:39]} Ke5 {[%emt 0:01:15]} 49. Kg3 {[%emt 0:00:28]} c6 {[%emt 0:00:57]} 50. Bf3 {[%emt 0:01:44]} Kd4 {[%emt 0:01:38]} 51. Kf2 {[%emt 0:00:20]} Rf6 {[%emt 0:01:58]} 52. g5 {[%emt 0:05:16]} Re6 {[%emt 0:00:48]} 53. Nf5+ {[%emt 0:05:46]} Kxc4 {[%emt 0:00:13]} 54. Kg3 {[%emt 0:00:11]} b5 {[%emt 0:00:53]} 55. Kf4 {[%emt 0:00:49]} b4 {[%emt 0:01:05]} 56. Ne3+ {[%emt 0:00:21]} Kd3 {[%emt 0:00:28]} 57. Nd1 {[%emt 0:01:30]} b3 {[%emt 0:00:31]} 58. Nf2+ {[%emt 0:01:49]} Kc3 {[%emt 0:01:12]} 59. Ne4+ {[%emt 0:00:45]} Kc2 {[%emt 0:01:07]} 60. Nc5 {[%emt 0:00:37]} b2 {[%emt 0:00:30]} 61. Nxe6 {[%emt 0:01:21]} Nxe6+ {[%emt 0:00:01]} 62. Ke3 {[%emt 0:01:16]} Nxg5 {[%emt 0:00:58]} 63. Be2 {[%emt 0:00:28]} b1=Q {[%emt 0:00:36]} 64. Bd3+ {[%emt 0:00:08]} Kc1 {[%emt 0:00:10]} 65. Bxb1 {[%emt 0:00:22]} Kxb1 {[%emt 0:00:01]} 66. Kf4 {[%emt 0:02:46]} c5 {[%emt 0:00:17]} 67. Kxg5 {[%emt 0:00:10]} c4 {[%emt 0:00:02]} 68. Kh6 {[%emt 0:00:02]} c3 {[%emt 0:00:08]} 69. Kxh7 {[%emt 0:00:10]} c2 {[%emt 0:00:04]} 0-1

[Event "4th Memorial Warakomska-A 2020"]
[Site "Suwalki"]
[Date "2020.08.09"]
[Round "5.15"]
[White "Jurkiewicz, Krzysztof"]
[Black "Flis, Pawel"]
[Result "1-0"]
[ECO "A57"]
[WhiteElo "2275"]
[BlackElo "1873"]
[Annotator "ChessBase"]
[PlyCount "53"]
[EventDate "2020.08.06"]
[EventType "swiss"]
[EventCountry "POL"]
[SourceTitle "playchess.com"]
[Source "ChessBase"]
[SourceQuality "1"]
[TimeControl "40/5400+30:1800+30"]

1. d4 {[%emt 0:00:00]} Nf6 {[%emt 0:00:00]} 2. c4 {[%emt 0:00:00]} c5 {[%emt 0:00:00]} 3. d5 {[%emt 0:00:00]} b5 {[%emt 0:00:00]} 4. a4 {[%emt 0:00:34]} bxc4 {[%emt 0:00:19]} 5. Nc3 {[%emt 0:00:14]} e6 {[%emt 0:01:01]} 6. e4 {[%emt 0:00:56]} d6 {[%emt 0:00:21]} 7. Bxc4 {[%emt 0:00:46]} exd5 {[%emt 0:00:04]} 8. Bxd5 {[%emt 0:01:39]} Nxd5 {[%emt 0:00:14]} 9. Qxd5 {[%emt 0:00:27]} Qc7 {[%emt 0:00:30]} 10. Qxa8 {[%emt 0:11:31]} Bb7 {[%emt 0:00:14]} 11. Nd5 {[%emt 0:06:34]} Qc8 {[%emt 0:07:07]} 12. Qxa7 {[%emt 0:00:42]} Nc6 {[%emt 0:00:18]} 13. Qb6 {[%emt 0:00:48]} Nd4 {[%emt 0:00:19]} 14. Be3 {[%emt 0:06:44]} Nc2+ {[%emt 0:01:45]} 15. Kd2 {[%emt 0:00:20]} Nxa1 {[%emt 0:00:39]} 16. Ne2 {[%emt 0:00:58]} Bxd5 {[%emt 0:01:46]} 17. exd5 {[%emt 0:00:19]} Nc2 {[%emt 0:00:36]} 18. Qb5+ {[%emt 0:01:12]} Kd8 {[%emt 0:00:16]} 19. Kxc2 {[%emt 0:00:19]} Qf5+ {[%emt 0:00:09]} 20. Qd3 {[%emt 0:00:35]} Qg4 {[%emt 0:00:43]} 21. Nc3 {[%emt 0:05:29]} Qxg2 {[%emt 0:00:47]} 22. Ra1 {[%emt 0:00:29]} Be7 {[%emt 0:00:40]} 23. a5 {[%emt 0:00:54]} Kc7 {[%emt 0:01:06]} 24. a6 {[%emt 0:01:00]} Ra8 {[%emt 0:02:18]} 25. a7 {[%emt 0:09:46]} Bf6 {[%emt 0:00:38]} 26. Qb5 {[%emt 0:03:14]} Bxc3 {[%emt 0:00:03]} 27. Qc6+ {[%emt 0:00:16]} 1-0

[Event "4th Memorial Warakomska-A 2020"]
[Site "Suwalki"]
[Date "2020.08.10"]
[Round "6.1"]
[White "Goluch, Piotr"]
[Black "Gumularz, Szymon"]
[Result "0-1"]
[ECO "E04"]
[WhiteElo "2376"]
[BlackElo "2513"]
[Annotator "ChessBase"]
[PlyCount "66"]
[EventDate "2020.08.06"]
[EventType "swiss"]
[EventCountry "POL"]
[SourceTitle "playchess.com"]
[Source "ChessBase"]
[SourceQuality "1"]
[TimeControl "40/5400+30:1800+30"]

1. d4 {[%emt 0:00:00]} Nf6 {[%emt 0:00:00]} 2. c4 {[%emt 0:00:00]} e6 {[%emt 0:00:13]} 3. g3 {[%emt 0:00:02]} d5 {[%emt 0:00:24]} 4. Nf3 {[%emt 0:00:10]} dxc4 {[%emt 0:01:08]} 5. Bg2 {[%emt 0:00:08]} a6 {[%emt 0:00:34]} 6. O-O {[%emt 0:04:20]} Nc6 {[%emt 0:00:08]} 7. Nc3 {[%emt 0:00:04]} Rb8 {[%emt 0:02:03]} 8. e4 {[%emt 0:00:26]} Be7 {[%emt 0:00:11]} 9. Qe2 {[%emt 0:02:06]} b5 {[%emt 0:00:54]} 10. Rd1 {[%emt 0:02:33]} O-O {[%emt 0:00:40]} 11. Bf4 {[%emt 0:01:31]} Re8 {[%emt 0:14:01]} 12. h4 {[%emt 0:05:39]} Nb4 {[%emt 0:13:08]} 13. Ne1 {[%emt 0:00:06]} Bb7 {[%emt 0:01:38]} 14. Rac1 {[%emt 0:12:03]} Nd7 {[%emt 0:09:48]} 15. Qd2 {[%emt 0:11:17]} Bf8 {[%emt 0:24:14]} 16. Bh3 {[%emt 0:12:23]} Ra8 {[%emt 0:07:46]} 17. Bg5 {[%emt 0:09:10]} Qb8 {[%emt 0:07:49]} 18. h5 {[%emt 0:17:03]} h6 {[%emt 0:01:34]} 19. Bf4 {[%emt 0:00:31]} Qd8 {[%emt 0:04:07]} 20. Bg2 {[%emt 0:07:29]} c5 {[%emt 0:01:46]} 21. d5 {[%emt 0:00:22]} exd5 {[%emt 0:00:25]} 22. exd5 {[%emt 0:00:01]} Nf6 {[%emt 0:00:32]} 23. Bf3 {[%emt 0:01:58]} Qd7 {[%emt 0:00:37]} 24. b3 {[%emt 0:03:56]} cxb3 {[%emt 0:00:31]} 25. axb3 {[%emt 0:00:01]} Rad8 {[%emt 0:01:28]} 26. Be3 {[%emt 0:01:54]} Qf5 {[%emt 0:00:35]} 27. Bg2 {[%emt 0:02:26]} Qxh5 {[%emt 0:01:30]} 28. Na2 {[%emt 0:02:16]} Nxa2 {[%emt 0:01:37]} 29. Qxa2 {[%emt 0:00:06]} Bxd5 {[%emt 0:00:21]} 30. Bxd5 {[%emt 0:00:28]} Rxd5 {[%emt 0:00:16]} 31. Rxd5 {[%emt 0:00:04]} Nxd5 {[%emt 0:00:03]} 32. Qxa6 {[%emt 0:00:39]} Nxe3 {[%emt 0:00:08]} 33. Qxb5 {[%emt 0:00:31]} Ng4 {[%emt 0:00:10]} 0-1

[Event "4th Memorial Warakomska-A 2020"]
[Site "Suwalki"]
[Date "2020.08.10"]
[Round "6.2"]
[White "Janik, Igor"]
[Black "Mulet, Piotr"]
[Result "1/2-1/2"]
[ECO "A29"]
[WhiteElo "2467"]
[BlackElo "2217"]
[Annotator "ChessBase"]
[PlyCount "71"]
[EventDate "2020.08.06"]
[EventType "swiss"]
[EventCountry "POL"]
[SourceTitle "playchess.com"]
[Source "ChessBase"]
[SourceQuality "1"]
[TimeControl "40/5400+30:1800+30"]

1. c4 {[%emt 0:00:00]} e5 {[%emt 0:00:27]} 2. Nc3 {[%emt 0:00:00]} Nf6 {[%emt 0:00:08]} 3. Nf3 {[%emt 0:00:00]} Nc6 {[%emt 0:00:06]} 4. g3 {[%emt 0:00:00]} Nd4 {[%emt 0:01:16]} 5. Bg2 {[%emt 0:00:00]} Nxf3+ {[%emt 0:02:38]} 6. Bxf3 {[%emt 0:00:34]} h5 {[%emt 0:10:29]} 7. d4 {[%emt 0:01:27]} exd4 {[%emt 0:03:05]} 8. Qxd4 {[%emt 0:00:08]} d6 {[%emt 0:01:59]} 9. Bg5 {[%emt 0:05:27]} Be7 {[%emt 0:00:19]} 10. h3 {[%emt 0:04:22]} c6 {[%emt 0:01:03]} 11. Rd1 {[%emt 0:02:54]} Be6 {[%emt 0:01:53]} 12. Kf1 {[%emt 0:03:48]} Qa5 {[%emt 0:09:12]} 13. Bf4 {[%emt 0:06:13]} O-O-O {[%emt 0:03:18]} 14. Kg2 {[%emt 0:02:02]} g5 {[%emt 0:10:55]} 15. Bd2 {[%emt 0:01:20]} Qc5 {[%emt 0:11:22]} 16. Qxc5 {[%emt 0:00:44]} dxc5 {[%emt 0:00:05]} 17. Bxg5 {[%emt 0:00:44]} Bxc4 {[%emt 0:00:07]} 18. b3 {[%emt 0:06:23]} Be6 {[%emt 0:00:35]} 19. e4 {[%emt 0:00:44]} c4 {[%emt 0:08:33]} 20. bxc4 {[%emt 0:02:13]} Bxc4 {[%emt 0:00:06]} 21. e5 {[%emt 0:00:16]} Nd5 {[%emt 0:00:53]} 22. Ne4 {[%emt 0:03:25]} Bxg5 {[%emt 0:02:13]} 23. Nxg5 {[%emt 0:00:05]} Ne7 {[%emt 0:00:33]} 24. Rxd8+ {[%emt 0:13:32]} Kxd8 {[%emt 0:00:07]} 25. a3 {[%emt 0:00:10]} Kc7 {[%emt 0:01:39]} 26. Be4 {[%emt 0:06:42]} b5 {[%emt 0:00:30]} 27. f4 {[%emt 0:02:02]} Be6 {[%emt 0:09:52]} 28. Rc1 {[%emt 0:05:14]} a5 {[%emt 0:01:07]} 29. Kf3 {[%emt 0:01:09]} b4 {[%emt 0:03:39]} 30. axb4 {[%emt 0:04:18]} axb4 {[%emt 0:00:04]} 31. g4 {[%emt 0:00:25]} hxg4+ {[%emt 0:01:21]} 32. hxg4 {[%emt 0:00:01]} Bd5 {[%emt 0:03:30]} 33. Rb1 {[%emt 0:09:12]} Bxe4+ {[%emt 0:02:12]} 34. Kxe4 {[%emt 0:00:12]} Nd5 {[%emt 0:00:22]} 35. Rb3 {[%emt 0:00:00]} Rh1 {[%emt 0:02:47]} 36. Nxf7 {[%emt 0:04:30]} 1/2-1/2

[Event "4th Memorial Warakomska-A 2020"]
[Site "Suwalki"]
[Date "2020.08.10"]
[Round "6.3"]
[White "Praczukowski, Stanislaw"]
[Black "Grabarczyk, Miroslaw"]
[Result "1/2-1/2"]
[ECO "C43"]
[WhiteElo "2132"]
[BlackElo "2366"]
[Annotator "ChessBase"]
[PlyCount "36"]
[EventDate "2020.08.06"]
[EventType "swiss"]
[EventCountry "POL"]
[SourceTitle "playchess.com"]
[Source "ChessBase"]
[SourceQuality "1"]
[TimeControl "40/5400+30:1800+30"]

1. e4 {[%emt 0:00:00]} e5 {[%emt 0:00:00]} 2. Nf3 {[%emt 0:00:00]} Nf6 {[%emt 0:00:26]} 3. d4 {[%emt 0:00:09]} Nxe4 {[%emt 0:00:20]} 4. Bd3 {[%emt 0:00:12]} d5 {[%emt 0:00:08]} 5. Nxe5 {[%emt 0:00:35]} Nd7 {[%emt 0:00:07]} 6. Nxd7 {[%emt 0:00:40]} Bxd7 {[%emt 0:00:08]} 7. O-O {[%emt 0:00:17]} Bd6 {[%emt 0:03:34]} 8. Qh5 {[%emt 0:00:53]} O-O {[%emt 0:00:58]} 9. Qxd5 {[%emt 0:01:06]} Bc6 {[%emt 0:00:11]} 10. Qh5 {[%emt 0:00:44]} g6 {[%emt 0:00:34]} 11. Qh3 {[%emt 0:00:47]} Re8 {[%emt 0:06:27]} 12. Nc3 {[%emt 0:02:21]} Ng5 {[%emt 0:06:15]} 13. Bxg5 {[%emt 0:00:08]} Qxg5 {[%emt 0:00:16]} 14. Rae1 {[%emt 0:00:39]} Rad8 {[%emt 0:12:14]} 15. Ne4 {[%emt 0:15:22]} Bxe4 {[%emt 0:01:29]} 16. Rxe4 {[%emt 0:00:52]} Rxe4 {[%emt 0:08:48]} 17. Bxe4 {[%emt 0:00:53]} Re8 {[%emt 0:05:17]} 18. Bd3 {[%emt 0:05:24]} Qd5 {[%emt 0:03:30]} 1/2-1/2

[Event "4th Memorial Warakomska-A 2020"]
[Site "Suwalki"]
[Date "2020.08.10"]
[Round "6.4"]
[White "Rudzinska, Michalina"]
[Black "Lewicki, Miroslaw"]
[Result "0-1"]
[ECO "B50"]
[WhiteElo "2080"]
[BlackElo "2340"]
[Annotator "ChessBase"]
[PlyCount "100"]
[EventDate "2020.08.06"]
[EventType "swiss"]
[EventCountry "POL"]
[SourceTitle "playchess.com"]
[Source "ChessBase"]
[SourceQuality "1"]
[TimeControl "40/5400+30:1800+30"]

1. e4 {[%emt 0:00:00]} c5 {[%emt 0:00:00]} 2. Nf3 {[%emt 0:00:00]} d6 {[%emt 0:00:00]} 3. Nc3 {[%emt 0:00:00]} Nf6 {[%emt 0:00:00]} 4. e5 {[%emt 0:00:00]} dxe5 {[%emt 0:00:00]} 5. Nxe5 {[%emt 0:00:06]} e6 {[%emt 0:00:48]} 6. Bb5+ {[%emt 0:00:16]} Nbd7 {[%emt 0:00:22]} 7. d4 {[%emt 0:00:26]} a6 {[%emt 0:02:38]} 8. Bxd7+ {[%emt 0:00:23]} Nxd7 {[%emt 0:02:31]} 9. Qf3 {[%emt 0:02:54]} Qf6 {[%emt 0:04:00]} 10. Bf4 {[%emt 0:00:22]} Nxe5 {[%emt 0:10:51]} 11. dxe5 {[%emt 0:00:13]} Qf5 {[%emt 0:00:18]} 12. O-O-O {[%emt 0:10:15]} Be7 {[%emt 0:04:24]} 13. g4 {[%emt 0:06:28]} Qg6 {[%emt 0:00:06]} 14. Ne4 {[%emt 0:00:50]} h5 {[%emt 0:00:39]} 15. g5 {[%emt 0:01:25]} Qf5 {[%emt 0:12:47]} 16. Kb1 {[%emt 0:19:53]} Qg4 {[%emt 0:01:48]} 17. Qe3 {[%emt 0:10:31]} Bd7 {[%emt 0:00:50]} 18. Rhg1 {[%emt 0:04:49]} Qf5 {[%emt 0:01:34]} 19. g6 {[%emt 0:00:36]} fxg6 {[%emt 0:01:25]} 20. Bg5 {[%emt 0:06:40]} Bc6 {[%emt 0:00:39]} 21. Nxc5 {[%emt 0:01:27]} Bf8 {[%emt 0:07:24]} 22. Nb3 {[%emt 0:08:43]} Bd5 {[%emt 0:05:29]} 23. Rxd5 {[%emt 0:07:45]} exd5 {[%emt 0:00:29]} 24. Nd4 {[%emt 0:00:16]} Qe4 {[%emt 0:05:26]} 25. Qh3 {[%emt 0:00:42]} Qxe5 {[%emt 0:09:26]} 26. f4 {[%emt 0:12:50]} Qd6 {[%emt 0:09:19]} 27. Qb3 {[%emt 0:01:01]} b5 {[%emt 0:01:07]} 28. f5 {[%emt 0:00:31]} gxf5 {[%emt 0:04:26]} 29. Re1+ {[%emt 0:01:30]} Kf7 {[%emt 0:01:48]} 30. Nxf5 {[%emt 0:00:06]} Qd7 {[%emt 0:00:23]} 31. Qf3 {[%emt 0:02:21]} Kg6 {[%emt 0:04:06]} 32. Ne7+ {[%emt 0:01:24]} Bxe7 {[%emt 0:00:25]} 33. Rxe7 {[%emt 0:00:04]} Rhf8 {[%emt 0:05:52]} 34. Qg3 {[%emt 0:00:56]} Rf1+ {[%emt 0:02:19]} 35. Bc1+ {[%emt 0:00:05]} Qg4 {[%emt 0:00:04]} 36. Qd6+ {[%emt 0:01:26]} Kh7 {[%emt 0:00:43]} 37. Qxd5 {[%emt 0:00:30]} Raf8 {[%emt 0:00:38]} 38. Qd3+ {[%emt 0:00:43]} Qg6 {[%emt 0:00:32]} 39. Qe3 {[%emt 0:00:28]} R8f3 {[%emt 0:01:10]} 40. Qd2 {[%emt 0:00:00]} R3f2 {[%emt 0:00:00]} 41. Re2 {[%emt 0:02:41]} Qf5 {[%emt 0:03:17]} 42. h4 {[%emt 0:04:24]} Rxe2 {[%emt 0:04:01]} 43. Qxe2 {[%emt 0:00:36]} Rh1 {[%emt 0:00:57]} 44. a3 {[%emt 0:02:55]} Rxh4 {[%emt 0:00:45]} 45. Ka2 {[%emt 0:00:34]} Rg4 {[%emt 0:02:19]} 46. b3 {[%emt 0:01:56]} h4 {[%emt 0:00:38]} 47. Bb2 {[%emt 0:00:58]} h3 {[%emt 0:00:46]} 48. Qe3 {[%emt 0:02:02]} Rg2 {[%emt 0:00:47]} 49. Qd4 {[%emt 0:00:35]} Qxc2 {[%emt 0:01:00]} 50. Qh4+ {[%emt 0:00:42]} Kg6 0-1

[Event "4th Memorial Warakomska-A 2020"]
[Site "Suwalki"]
[Date "2020.08.10"]
[Round "6.5"]
[White "Shilov, Sergej"]
[Black "Rasti, Arvin"]
[Result "1-0"]
[ECO "A37"]
[WhiteElo "2121"]
[BlackElo "2139"]
[Annotator "ChessBase"]
[PlyCount "65"]
[EventDate "2020.08.06"]
[EventType "swiss"]
[EventCountry "POL"]
[SourceTitle "playchess.com"]
[Source "ChessBase"]
[SourceQuality "1"]
[TimeControl "40/5400+30:1800+30"]

1. c4 {[%emt 0:00:00]} c5 {[%emt 0:00:12]} 2. Nf3 {[%emt 0:00:31]} Nc6 {[%emt 0:00:06]} 3. Nc3 {[%emt 0:00:23]} g6 {[%emt 0:00:25]} 4. g3 {[%emt 0:00:17]} Bg7 {[%emt 0:00:06]} 5. Bg2 {[%emt 0:00:01]} e6 {[%emt 0:00:25]} 6. O-O {[%emt 0:06:42]} Nge7 {[%emt 0:00:32]} 7. d4 {[%emt 0:01:43]} cxd4 {[%emt 0:11:09]} 8. Nb5 {[%emt 0:00:27]} O-O {[%emt 0:00:37]} 9. Nbxd4 {[%emt 0:07:12]} d5 {[%emt 0:01:27]} 10. Nxc6 {[%emt 0:05:04]} bxc6 {[%emt 0:00:32]} 11. Qa4 {[%emt 0:04:18]} e5 {[%emt 0:07:28]} 12. cxd5 {[%emt 0:10:33]} cxd5 {[%emt 0:00:15]} 13. Rd1 {[%emt 0:00:02]} Bd7 {[%emt 0:04:36]} 14. Qa3 {[%emt 0:00:43]} Bc6 {[%emt 0:07:07]} 15. Bg5 {[%emt 0:09:04]} Re8 {[%emt 0:03:52]} 16. Rac1 {[%emt 0:00:31]} Bb5 {[%emt 0:08:09]} 17. Rc5 {[%emt 0:09:00]} Rb8 {[%emt 0:05:18]} 18. e4 {[%emt 0:03:30]} f6 {[%emt 0:05:43]} 19. Bc1 {[%emt 0:11:26]} Be2 {[%emt 0:05:43]} 20. Re1 {[%emt 0:02:12]} Bxf3 {[%emt 0:00:34]} 21. Bxf3 {[%emt 0:00:17]} d4 {[%emt 0:00:16]} 22. Bd2 {[%emt 0:02:26]} Qb6 {[%emt 0:03:09]} 23. b4 {[%emt 0:01:03]} Nc6 {[%emt 0:01:54]} 24. Be2 {[%emt 0:00:52]} Bf8 {[%emt 0:02:27]} 25. Qb3+ {[%emt 0:00:44]} Kg7 {[%emt 0:01:14]} 26. Rb5 {[%emt 0:00:18]} Qc7 {[%emt 0:00:10]} 27. Rc1 {[%emt 0:00:34]} Qd6 {[%emt 0:01:22]} 28. a3 {[%emt 0:04:36]} Ne7 {[%emt 0:06:20]} 29. Rxb8 {[%emt 0:01:25]} Rxb8 {[%emt 0:00:01]} 30. Bd3 {[%emt 0:00:16]} Qd7 {[%emt 0:03:18]} 31. Bb1 {[%emt 0:00:33]} Rc8 {[%emt 0:02:05]} 32. Rxc8 {[%emt 0:01:04]} Nxc8 {[%emt 0:00:44]} 33. Ba2 {[%emt 0:00:18]} 1-0

[Event "4th Memorial Warakomska-A 2020"]
[Site "Suwalki"]
[Date "2020.08.10"]
[Round "6.6"]
[White "Malaczek, Mateusz"]
[Black "Godzwon, Iwo"]
[Result "1-0"]
[ECO "A20"]
[WhiteElo "2036"]
[BlackElo "2347"]
[Annotator "ChessBase"]
[PlyCount "81"]
[EventDate "2020.08.06"]
[EventType "swiss"]
[EventCountry "POL"]
[SourceTitle "playchess.com"]
[Source "ChessBase"]
[SourceQuality "1"]
[TimeControl "40/5400+30:1800+30"]

1. c4 {[%emt 0:00:00]} e5 {[%emt 0:00:00]} 2. g3 {[%emt 0:00:00]} Nc6 {[%emt 0:00:56]} 3. Bg2 {[%emt 0:00:00]} Bc5 {[%emt 0:00:07]} 4. e3 {[%emt 0:03:35]} d6 {[%emt 0:11:47]} 5. a3 {[%emt 0:06:50]} a6 {[%emt 0:05:50]} 6. Ne2 {[%emt 0:02:21]} Ba7 {[%emt 0:02:33]} 7. Nbc3 {[%emt 0:09:56]} h5 {[%emt 0:00:36]} 8. h4 {[%emt 0:03:14]} Nge7 {[%emt 0:06:39]} 9. b4 {[%emt 0:05:59]} Be6 {[%emt 0:03:51]} 10. Nd5 {[%emt 0:01:37]} Qd7 {[%emt 0:00:05]} 11. Bb2 {[%emt 0:04:23]} Nd8 {[%emt 0:09:09]} 12. Nxe7 {[%emt 0:08:50]} Qxe7 {[%emt 0:05:29]} 13. Rc1 {[%emt 0:01:20]} Bg4 {[%emt 0:06:24]} 14. f3 {[%emt 0:11:43]} Bd7 {[%emt 0:01:35]} 15. Kf2 {[%emt 0:12:02]} c6 {[%emt 0:06:47]} 16. d4 {[%emt 0:02:13]} f5 {[%emt 0:00:51]} 17. dxe5 {[%emt 0:01:50]} dxe5 {[%emt 0:00:07]} 18. c5 {[%emt 0:00:08]} Nf7 {[%emt 0:00:28]} 19. Qc2 {[%emt 0:06:18]} Bb8 {[%emt 0:05:20]} 20. Rcd1 {[%emt 0:01:37]} O-O {[%emt 0:04:01]} 21. Bh3 {[%emt 0:04:32]} Nh6 {[%emt 0:00:18]} 22. Qc3 {[%emt 0:00:54]} Bc7 {[%emt 0:02:37]} 23. Rd2 {[%emt 0:04:35]} Rae8 {[%emt 0:01:54]} 24. Rhd1 {[%emt 0:00:43]} Bc8 {[%emt 0:00:03]} 25. f4 {[%emt 0:02:37]} Nf7 {[%emt 0:04:16]} 26. Ng1 {[%emt 0:00:50]} Qf6 {[%emt 0:01:44]} 27. Nf3 {[%emt 0:00:55]} Qg6 {[%emt 0:09:59]} 28. Ng5 {[%emt 0:00:30]} Nxg5 {[%emt 0:00:16]} 29. hxg5 {[%emt 0:00:08]} Be6 {[%emt 0:02:51]} 30. Bg2 {[%emt 0:02:39]} h4 {[%emt 0:02:55]} 31. gxh4 {[%emt 0:00:11]} exf4 {[%emt 0:00:04]} 32. exf4 {[%emt 0:00:14]} Bxf4 {[%emt 0:00:05]} 33. Re2 {[%emt 0:00:15]} Bf7 {[%emt 0:02:14]} 34. Rde1 {[%emt 0:01:02]} Rd8 {[%emt 0:01:04]} 35. Bf3 {[%emt 0:00:41]} Bd5 {[%emt 0:01:45]} 36. Bh5 {[%emt 0:01:18]} Qh7 {[%emt 0:00:53]} 37. Re7 {[%emt 0:00:10]} Bf7 {[%emt 0:00:07]} 38. Rxf7 {[%emt 0:01:51]} Rd2+ {[%emt 0:00:42]} 39. Kf1 {[%emt 0:00:25]} Rxf7 {[%emt 0:00:11]} 40. Bxf7+ {[%emt 0:00:00]} Kxf7 {[%emt 0:00:00]} 41. Qc4+ {[%emt 0:00:52]} 1-0